[Event "7th Sharjah Masters 2024"]
[Site "Sharjah"]
[Date "2024.05.20"]
[Round "7.6"]
[White "Suleymanli, Aydin"]
[Black "Sindarov, Javokhir"]
[Result "1-0"]
[ECO "C77"]
[WhiteElo "2621"]
[BlackElo "2684"]
[Annotator "TA"]
[PlyCount "77"]
[EventDate "2024.05.13"]
[EventType "swiss"]
[EventCountry "UAE"]
[SourceTitle "playchess.com"]
[Source "ChessBase"]
[SourceQuality "1"]
[TimeControl "5400+30"]

{[%evp 16,77,16,10,29,25,19,18,18,25,47,43,37,50,40,37,49,45,52,11,20,23,20,32,10,0,57,44,110,102,100,101,135,68,119,114,114,111,110,121,118,100,174,163,166,164,260,248,249,193,380,360,492,450,835,833,823,800,1150,1122,29985,29986,29986,29987]} 1. e4 {[%emt 1:31:00]} e5 {[%emt 1:31:00]} 2. Nf3 {[%emt 0:00:30]} Nc6 {[%emt 0:00:30]} 3. Bb5 {[%emt 0:00:30][%cal Bf1b5,Bb5a4,Ba4b3,Bb3a2][%mdl 32]} a6 {[%emt 0:00:30]} 4. Ba4 {[%emt 0:00:30]} Nf6 {[%emt 0:00:30]} 5. O-O {[%emt 0:00:30]} Be7 {[%emt 0:00:30]} 6. d3 {[%emt 0:00:30]} b5 {[%emt 0:00:30]} 7. Bb3 {[%emt 0:00:30]} d6 {[%emt 0:00:30]} 8. a3 {[%emt 0:00:30]} O-O {[%emt 0:00:30]} 9. Nc3 {[%emt 0:00:30]} Na5 {[%emt 0:00:30]} 10. Ba2 {[%emt 0:00:30]} c5 {[%emt 0:00:30]} 11. b4 {[%emt 0:00:30]} Nc6 {[%emt 0:00:30] The position is equal.} 12. Nd5 {[%emt 0:00:30]} a5 {[%emt 0:00:30][%cal Ra5b4,Ba6a5,Ba5a4][%mdl 32]} 13. c4 {[%emt 0:00:30]} Nxd5 {[%emt 0:00:30]} 14. exd5 {[%emt 0:00:30]} Nd4 {[%emt 0:00:30]} 15. Nxd4 {[%emt 0:00:30]} cxd4 {[%emt 0:00:30]} 16. cxb5 {[%emt 0:00:30] Black must now prevent a4.} a4 $1 {[%emt 0:00:30]} 17. Bd2 {[%emt 0:00:30]} Bd7 {[%emt 0:00:30]} 18. Rc1 {[%emt 0:00:30][%cal Oc1c6]} Bxb5 {[%emt 0:00:30]} 19. Bc4 {[%emt 0:00:30]} Bd7 {[%emt 0:00:30]} 20. Rb1 {[%emt 0:00:30]} Qb8 {[%emt 0:00:30]} (20... f5 $11) 21. b5 $14 {[%emt 0:00:30]} Bd8 {[%emt 0:00:30]} (21... Qb6 $14) 22. f4 $16 {[%emt 0:00:30]} exf4 {[%emt 0:00:30]} 23. Bxf4 {[%emt 0:00:30]} Bb6 {[%emt 0:00:30]} 24. Rb4 {[%emt 0:00:30]} (24. Qe1 $16) 24... Ba5 {[%emt 0:00:30]} (24... Ra5 $14) 25. Qxa4 {[%emt 0:00:30]} (25. Rxa4 $6 Bxb5 26. Bxb5 Qxb5 $11) 25... g5 {[%emt 0:00:30] [#]} (25... Bxb4 $2 26. Qxb4 Rd8 27. a4 $18 (27. Qxd6 Qxd6 28. Bxd6 Bxb5 $15) (27. Bxd6 Qb6 $18)) 26. Bc1 {[%emt 0:00:30]} ({Inferior is} 26. Bxg5 Bd8 27. Qc2 Bxg5 $17) 26... f5 {[%emt 0:00:30][%cal Bf7f5,Bf5f4][%mdl 32]} 27. Rb1 {[%emt 0:00:30][%cal Oa4d1]} ({Weaker is} 27. Bxg5 Bd8 28. Qc2 Bxg5 $19) 27... f4 {[%emt 0:00:30]} 28. Qd1 {[%emt 0:00:30][%cal Oh2h4] Against Bg4. Strongly threatening h4!} Qe8 {[%emt 0:00:30]} (28... h6 $16) 29. b6 $18 {[%emt 0:00:30][%cal Bb5b6,Bb6b7][%mdl 32]} Rb8 {[%emt 0:00:30]} 30. b7 {[%emt 0:00:30]} Rf7 {[%emt 0:00:30]} (30... Bc3 $142 31. Qf3 Qe5) 31. Qh5 {[%emt 0:00:30]} Qe5 {[%emt 0:00:30]} 32. Rb2 {[%emt 0:00:30]} Re7 $2 {[%emt 0:00:30] [#]} (32... Qg7 33. Ba6 Rf5) 33. h4 {[%emt 0:00:30]} Bc3 {[%emt 0:00:30]} 34. Rb6 {[%emt 0:00:30]} (34. Qxg5+ Qxg5 35. hxg5 Bxb2 36. Bxb2 Rxb7 37. Bxd4 Bb5 $14) 34... Rg7 {[%emt 0:00:30]} (34... Be8 $142 35. Qxg5+ Qxg5 36. hxg5 Rexb7) 35. hxg5 {[%emt 0:00:30]} Rxg5 {[%emt 0:00:30]} 36. Qf3 {[%emt 0:00:30]} Rg3 {[%emt 0:00:30]} 37. Qxf4 {[%emt 0:00:30]} Qg7 {[%emt 0:00:30]} 38. Qxd6 {[%emt 0:00:30]} Rxg2+ {[%emt 0:00:30]} 39. Kh1 {[%emt 0:00:30] Weighted Error Value: White=0.07 (flawless) /Black=0.56.  Mistake:       	White=1     	Black=7      Inaccurate:     	White=1     	Black=2      OK:         	White=13    	Black=9      Best:        	White=6     	---        Strong:       	---       	Black=1} 1-0

[Event "7th Sharjah Masters 2024"]
[Site "Sharjah"]
[Date "2024.05.20"]
[Round "7.7"]
[White "Pranav, V."]
[Black "Murzin, Volodar"]
[Result "0-1"]
[ECO "B94"]
[WhiteElo "2587"]
[BlackElo "2634"]
[Annotator "RC"]
[PlyCount "128"]
[EventDate "2024.05.13"]
[EventType "swiss"]
[EventCountry "UAE"]
[SourceTitle "playchess.com"]
[Source "ChessBase"]
[SourceQuality "1"]
[TimeControl "5400+30"]

1. e4 {[%emt 1:31:00]} c5 {[%emt 1:31:00]} 2. Nf3 {[%emt 0:00:30]} d6 {[%emt 0:00:30]} 3. d4 {[%emt 0:00:30]} cxd4 {[%emt 0:00:30]} 4. Nxd4 {[%emt 0:00:30]} Nf6 {[%emt 0:00:30]} 5. Nc3 {[%emt 0:00:30]} a6 {[%emt 0:00:30]} 6. Bg5 {[%emt 0:00:30]} Nbd7 {[%emt 0:00:30]} 7. Qe2 {[%emt 0:00:30]} Qc7 {[%emt 0:00:30]} 8. g3 {[%emt 0:00:30]} h6 {[%emt 0:00:30]} 9. Bxf6 {[%emt 0:00:30]} Nxf6 {[%emt 0:00:30]} 10. Bg2 {[%emt 0:00:30]} e5 {[%emt 0:00:30]} 11. Nb3 {[%emt 0:00:30]} Be6 {[%emt 0:00:30]} 12. Nd2 {[%emt 0:00:30]} b5 {[%emt 0:00:30]} 13. O-O {[%emt 0:00:30]} Be7 {[%emt 0:00:30]} 14. a4 {[%emt 0:00:30]} b4 {[%emt 0:00:30]} 15. Nd5 {[%emt 0:00:30]} Nxd5 {[%emt 0:00:30]} 16. exd5 {[%emt 0:00:30]} Bd7 {[%emt 0:00:30]} 17. f4 {[%emt 0:00:30]} O-O {[%emt 0:00:30]} 18. Nc4 {[%emt 0:00:30]} e4 {[%emt 0:00:30]} 19. Bxe4 {[%emt 0:00:30]} Bf6 {[%emt 0:00:30]} 20. Bd3 {[%emt 0:00:30]} Qc5+ {[%emt 0:00:30]} 21. Kg2 {[%emt 0:00:30]} Qxd5+ {[%emt 0:00:30]} 22. Qe4 {[%emt 0:00:30]} Qxe4+ {[%emt 0:00:30]} 23. Bxe4 {[%emt 0:00:30]} Rac8 {[%emt 0:00:30]} 24. Nxd6 {[%emt 0:00:30]} Rc5 {[%emt 0:00:30]} 25. Rab1 {[%emt 0:00:30]} Be7 {[%emt 0:00:30]} 26. Nb7 {[%emt 0:00:30]} Rc4 {[%emt 0:00:30]} 27. Bd3 {[%emt 0:00:30]} Rc7 {[%emt 0:00:30]} 28. Na5 {[%emt 0:00:30]} Bxa4 {[%emt 0:00:30]} 29. b3 {[%emt 0:00:30]} Bb5 {[%emt 0:00:30]} 30. Nc4 {[%emt 0:00:30]} Bf6 {[%emt 0:00:30]} 31. Rbd1 {[%emt 0:00:30]} Rc5 {[%emt 0:00:30]} 32. Ne3 {[%emt 0:00:30]} Bc6+ {[%emt 0:00:30]} 33. Kf2 {[%emt 0:00:30]} a5 {[%emt 0:00:30]} 34. Rfe1 {[%emt 0:00:30]} Re8 {[%emt 0:00:30]} 35. Bc4 {[%emt 0:00:30]} Bc3 {[%emt 0:00:30]} 36. Re2 {[%emt 0:00:30]} a4 {[%emt 0:00:30]} 37. Rd3 {[%emt 0:00:30]} Bb2 {[%emt 0:00:30]} 38. Nd1 {[%emt 0:00:30]} Rxe2+ {[%emt 0:00:30]} 39. Kxe2 {[%emt 0:00:30]} Bf6 {[%emt 0:00:30]} 40. Ne3 {[%emt 0:00:30]} a3 {[%emt 0:00:30]} 41. Ng4 Bc3 {[%emt 0:00:30]} 42. Rd8+ Kh7 43. Bxf7 {[%emt 0:01:30]} g6 {[%emt 0:01:00]} 44. Ne5 {[%emt 0:00:30]} a2 {[%emt 0:00:30]} 45. Bxg6+ {[%emt 0:00:30]} Kg7 {[%emt 0:00:30]} 46. Nxc6 {[%emt 0:00:30]} Rxc6 {[%emt 0:00:30]} 47. Ra8 {[%emt 0:00:30]} a1=Q {[%emt 0:00:30]} 48. Rxa1 {[%emt 0:00:30]} Bxa1 {[%emt 0:00:30]} 49. Be4 {[%emt 0:00:30]} Rd6 {[%emt 0:00:30]} 50. Bd3 {[%emt 0:00:30]} Bd4 {[%emt 0:00:30]} 51. Kf3 {[%emt 0:00:30]} Re6 {[%emt 0:00:30]} 52. Be4 Bg1 {[%emt 0:00:30]} 53. h3 {[%emt 0:01:00]} Bd4 {[%emt 0:00:30]} 54. g4 {[%emt 0:00:30]} Bf6 {[%emt 0:00:30]} 55. Ke3 {[%emt 0:00:30]} Kf8 {[%emt 0:00:30]} 56. Kf3 {[%emt 0:00:30]} Ke7 {[%emt 0:00:30]} 57. Bd3 {[%emt 0:00:30]} Kd6 {[%emt 0:00:30]} 58. Bc4 {[%emt 0:00:30]} Re1 {[%emt 0:00:30]} 59. Bd3 {[%emt 0:00:30]} Kc5 {[%emt 0:00:30]} 60. g5 {[%emt 0:00:30]} hxg5 {[%emt 0:00:30]} 61. fxg5 {[%emt 0:00:30]} Bxg5 {[%emt 0:00:30]} 62. Kg4 {[%emt 0:00:30]} Be7 {[%emt 0:00:30]} 63. Ba6 {[%emt 0:00:30]} Kd4 {[%emt 0:00:30]} 64. Bd3 {[%emt 0:00:30]} Kc3 {[%emt 0:00:30]} 0-1

[Event "7th Sharjah Masters 2024"]
[Site "Sharjah"]
[Date "2024.05.20"]
[Round "7.8"]
[White "Muradli, Mahammad"]
[Black "Radjabov, Teimour"]
[Result "1-0"]
[ECO "D35"]
[WhiteElo "2561"]
[BlackElo "2723"]
[Annotator "TA"]
[PlyCount "133"]
[EventDate "2024.05.13"]
[EventType "swiss"]
[EventCountry "UAE"]
[SourceTitle "playchess.com"]
[Source "ChessBase"]
[SourceQuality "1"]
[TimeControl "5400+30"]

{[%evp 64,133,82,68,73,79,146,60,88,86,79,66,77,58,104,104,104,104,104,104,109,102,114,100,100,100,125,110,132,130,119,93,103,97,126,116,110,109,171,143,331,137,132,129,122,125,146,0,96,0,137,60,153,158,228,220,236,166,295,281,590,245,776,606,532,0,859,850,1335,633,651,636]} 1. d4 {[%emt 1:31:00]} Nf6 {[%emt 1:31:00]} 2. c4 {[%emt 0:00:30]} e6 {[%emt 0:00:30]} 3. Nf3 {[%emt 0:00:30]} d5 {[%emt 0:00:30]} 4. Nc3 {[%emt 0:00:30]} Be7 {[%emt 0:00:30]} 5. cxd5 {[%emt 0:00:30]} exd5 {[%emt 0:00:30]} 6. Bf4 {[%emt 0:00:30]} c6 {[%emt 0:00:30]} 7. e3 {[%emt 0:00:30]} Bf5 {[%emt 0:00:30]} 8. Nh4 {[%emt 0:00:30]} Bg4 {[%emt 0:00:30]} 9. Qc2 {[%emt 0:00:30]} Nbd7 {[%emt 0:00:30]} 10. h3 {[%emt 0:00:30]} Be6 {[%emt 0:00:30]} 11. Bd3 {[%emt 0:00:30]} O-O {[%emt 0:00:30]} 12. O-O {[%emt 0:00:30]} Ne4 {[%emt 0:00:30]} 13. Nf3 {[%emt 0:00:30]} f5 {[%emt 0:00:30]} 14. Ne5 {[%emt 0:00:30]} Nxe5 {[%emt 0:00:30]} 15. Bxe5 {[%emt 0:00:30]} Bd6 16. Ne2 {[%emt 0:00:30]} Qc7 {[%emt 0:01:00]} 17. f4 {[%emt 0:00:30]} a5 {[%emt 0:00:30]} 18. Kh2 {[%emt 0:00:30]} Qe7 {[%emt 0:00:30]} 19. Bxd6 {[%emt 0:00:30]} Qxd6 {[%emt 0:00:30]} 20. Ng1 {[%emt 0:00:30]} g5 {[%emt 0:00:30]} 21. g3 {[%emt 0:00:30]} h6 {[%emt 0:00:30]} 22. Nf3 {[%emt 0:00:30]} Rf7 {[%emt 0:00:30]} 23. Ne5 {[%emt 0:00:30]} Rg7 {[%emt 0:00:30]} 24. Bxe4 {[%emt 0:00:30]} dxe4 {[%emt 0:00:30]} 25. a3 {[%emt 0:00:30]} Rf8 {[%emt 0:00:30]} 26. Qc3 {[%emt 0:00:30]} Qd8 {[%emt 0:00:30]} 27. Rf2 {[%emt 0:00:30]} Kh7 {[%emt 0:00:30]} 28. Qc2 {[%emt 0:00:30]} Rfg8 {[%emt 0:00:30]} 29. Rg1 {[%emt 0:00:30]} Kh8 {[%emt 0:00:30]} 30. Rgg2 {[%emt 0:00:30]} h5 {[%emt 0:00:30]} 31. fxg5 {[%emt 0:00:30]} Qxg5 {[%emt 0:00:30]} 32. Rf4 {[%emt 0:00:30]} Qe7 {[%emt 0:00:30]} 33. Qc3 {[%emt 0:00:30]} Qd8 $1 {[%emt 0:00:30]} 34. Qe1 {[%emt 0:00:30]} Rh7 {[%emt 0:00:30]} ({Black should try} 34... Rg5) 35. Kg1 {[%emt 0:00:30]} (35. Qf2 $16) 35... Rgg7 {[%emt 0:00:30]} 36. b4 {[%emt 0:00:30]} axb4 {[%emt 0:00:30]} 37. Qxb4 {[%emt 0:00:30]} Kg8 {[%emt 0:00:30]} 38. a4 {[%emt 0:00:30]} Qd5 {[%emt 0:00:30]} (38... Qe7 $14 {might be stronger.} 39. Qc3 Rh6) 39. a5 $16 {[%emt 0:00:30]} Rh6 {[%emt 0:00:30]} 40. Kh2 {[%emt 0:00:30]} Kh7 {[%emt 0:00:30]} 41. Rgf2 {[%emt 0:00:30]} Qd8 {[%emt 0:00:30]} 42. Rb2 {[%emt 0:00:30]} Qg5 {[%emt 0:00:30]} 43. Qe1 {[%emt 0:00:30]} Qe7 {[%emt 0:00:30]} 44. Rc2 {[%emt 0:00:30]} Qa3 {[%emt 0:00:30]} 45. Rc5 {[%emt 0:00:30]} Kg8 {[%emt 0:00:30]} 46. Qd2 {[%emt 0:00:30]} Kh7 {[%emt 0:00:30]} 47. Rc1 {[%emt 0:00:30]} Kg8 {[%emt 0:00:30]} 48. Rb1 {[%emt 0:00:30]} Kh7 {[%emt 0:00:30]} 49. Rb6 {[%emt 0:00:30]} Bc8 {[%emt 0:00:30]} 50. h4 {[%emt 0:00:30]} Re7 {[%emt 0:00:30]} (50... Qe7 $16 {keeps fighting.} 51. Qc3 Qe6) 51. Rf1 {[%emt 0:00:30]} Qd6 $2 {[%emt 0:00:30]} (51... Rg7 $16 52. Rg1 Qd6) 52. Qc3 {[%emt 0:00:30]} (52. a6 $18 {is the precise move to win.}) 52... Qd5 $16 {[%emt 0:00:30]} 53. Rf2 {[%emt 0:00:30]} Rg7 {[%emt 0:00:30]} 54. Qe1 {[%emt 0:00:30]} Qg8 {[%emt 0:00:30]} 55. Rf4 {[%emt 0:00:30]} (55. Rfb2 $16) 55... Qd5 {[%emt 0:00:30]} (55... Qa2+ $11 {keeps the balance.} 56. Rf2 Qd5) 56. Rf2 {[%emt 0:00:30]} (56. Rb2 $16) 56... Rf6 {[%emt 0:00:30]} (56... Qg8 $11) 57. Rbb2 {[%emt 0:00:30]} (57. Rc2 $16) 57... Qg8 {[%emt 0:00:30]} (57... c5 $1 $14) 58. Rfc2 $16 {[%emt 0:00:30]} Qe8 {[%emt 0:00:30]} (58... Qe6 $16) 59. Qf1 $18 {[%emt 0:00:30]} Qd8 {[%emt 0:00:30]} 60. Rc5 {[%emt 0:00:30]} Rf8 {[%emt 0:00:30]} (60... f4 $142 61. gxf4 Rf8) 61. Qf4 $18 {[%emt 0:00:30]} Rfg8 $2 {[%emt 0:00:30]} (61... Qf6 {is tougher.} 62. a6 Kg8) 62. Rg2 {[%emt 0:00:30]} (62. a6 $142 {Strongly threatening axb7.} Qf6 63. axb7 Bxb7 64. Rb6) 62... Rc7 $2 {[%emt 0:00:30]} (62... Qf6 63. a6 Rf8) 63. Rgc2 {[%emt 0:00:30]} Rcg7 {[%emt 0:00:30]} 64. Rg2 {[%emt 0:00:30]} (64. a6 $142 Re8 65. axb7 Bxb7 66. Qxf5+ Kg8 67. Qxh5 (67. Nxc6 Qd6 $18)) 64... Rc7 $1 $18 {[%emt 0:00:30]} 65. a6 {[%emt 0:00:30]} Qf6 {[%emt 0:00:30]} 66. axb7 {[%emt 0:00:30]} (66. a7 $142) 66... Bxb7 $18 {[%emt 0:00:30]} 67. Ng4 {[%emt 0:00:30]} 1-0

[Event "7th Sharjah Masters 2024"]
[Site "Sharjah"]
[Date "2024.05.20"]
[Round "7.9"]
[White "Artemiev, Vladislav"]
[Black "Maurizzi, Marc`Andria"]
[Result "1/2-1/2"]
[ECO "D02"]
[WhiteElo "2705"]
[BlackElo "2618"]
[Annotator "TA"]
[PlyCount "109"]
[EventDate "2024.05.13"]
[EventType "swiss"]
[EventCountry "UAE"]
[SourceTitle "playchess.com"]
[Source "ChessBase"]
[SourceQuality "1"]
[TimeControl "5400+30"]

{[%evp 11,109,-1,19,27,20,6,23,0,3,11,18,20,18,18,19,15,37,31,26,28,46,34,51,47,47,46,48,31,47,23,12,4,19,21,19,11,17,23,27,17,30,33,36,33,38,22,16,8,20,14,13,12,10,6,14,8,10,0,15,12,21,0,0,0,0,0,0,0,8,3,8,10,8,8,11,18,18,12,12,0,26,38,45,0,0,0,74,20,38,0,38,0,0,0,0,-31,-31,-84,0,0]} 1. d4 {[%emt 1:31:00]} d5 {[%emt 1:31:00]} 2. Nf3 {[%emt 0:00:30]} Nf6 {[%emt 0:00:30][%cal Bg8f6,Bf6h5,Bh5f4][%mdl 32]} 3. Bf4 {[%emt 0:00:30]} e6 {[%emt 0:00:30]} 4. e3 {[%emt 0:00:30]} c5 {[%emt 0:00:30]} 5. c3 {[%emt 0:00:30]} Nc6 {[%emt 0:00:30]} 6. Nbd2 {[%emt 0:00:30]} cxd4 {[%emt 0:00:30]} 7. exd4 {[%emt 0:00:30]} Nh5 {[%emt 0:00:30]} 8. Be3 {[%emt 0:00:30]} Bd6 {[%emt 0:00:30]} 9. Bb5 {[%emt 0:00:30] White has an edge.} Nf4 {[%emt 0:00:30]} 10. O-O {[%emt 0:00:30]} O-O {[%emt 0:00:30]} 11. Re1 {[%emt 0:00:30]} Bd7 {[%emt 0:00:30] [#]} (11... Ng6 {simplifies} 12. Bd3 b6 13. g3 h6) 12. Ne5 $1 {[%emt 0:00:30]} Nxe5 {[%emt 0:00:30]} 13. Bxf4 {[%emt 0:00:30] Bxd7 is the strong threat.} Nc4 {[%emt 0:00:30]} 14. Bxd6 {[%emt 0:00:30]} Nxd6 {[%emt 0:00:30]} 15. Bd3 {[%emt 0:00:30]} g6 {[%emt 0:00:30]} 16. Qg4 {[%emt 0:00:30]} Ne8 {[%emt 0:00:30][%cal Oe6e5]} 17. Qf4 {[%emt 0:00:30]} Ng7 {[%emt 0:00:30]} 18. Nf3 {[%emt 0:00:30] Black is weak on the dark squares} (18. Re3 {looks sharper.} Nh5 19. Qh6 Qf6 20. Rf3) 18... f6 {[%emt 0:00:30]} 19. h4 {[%emt 0:00:30]} Rf7 {[%emt 0:00:30]} 20. c4 {[%emt 0:00:30]} dxc4 {[%emt 0:00:30]} 21. Bxc4 {[%emt 0:00:30]} Qb8 {[%emt 0:00:30]} 22. Qe4 {[%emt 0:00:30]} Bc6 {[%emt 0:00:30]} 23. d5 {[%emt 0:00:30]} exd5 {[%emt 0:00:30]} 24. Bxd5 {[%emt 0:00:30]} Bxd5 {[%emt 0:00:30]} 25. Qxd5 {[%emt 0:00:30]} Qd8 {[%emt 0:00:30] Against Re7} 26. Qb3 {[%emt 0:00:30]} Qb6 {[%emt 0:00:30]} 27. Qxb6 {[%emt 0:00:30]} axb6 {[%emt 0:00:30]} 28. a3 {[%emt 0:00:30]} Rd7 {[%emt 0:00:30]} 29. Rac1 {[%emt 0:00:30]} Re8 {[%emt 0:00:30]} 30. Kf1 {[%emt 0:00:30]} Kf7 {[%emt 0:00:30]} 31. Rxe8 {[%emt 0:00:30]} Nxe8 $11 {[%emt 0:00:30][%mdl 4096] Endgame. KRN-KRN} 32. Rc4 {[%emt 0:00:30]} b5 {[%emt 0:00:30]} 33. Rc5 {[%emt 0:00:30]} Nd6 {[%emt 0:00:30]} 34. Ke2 {[%emt 0:00:30]} Re7+ {[%emt 0:00:30]} 35. Kd3 {[%emt 0:00:30]} Rd7 {[%emt 0:00:30]} 36. Kc2 {[%emt 0:00:30]} b4 {[%emt 0:00:30]} 37. a4 {[%emt 0:00:30]} Ne4 {[%emt 0:00:30][%csl LRc5,LRf2]} 38. Rc4 {[%emt 0:00:30][%csl LRb4,LRe4]} Nxf2 {[%emt 0:00:30]} 39. Rxb4 {[%emt 0:00:30]} Nd3 {[%emt 0:00:30]} 40. Re4 {[%emt 0:00:30]} h6 {[%emt 0:00:30]} 41. Kc3 {[%emt 0:00:30]} Nc5 {[%emt 0:00:30]} 42. Rc4 {[%emt 0:00:30]} Ne6 {[%emt 0:00:30]} 43. a5 {[%emt 0:00:30]} g5 {[%emt 0:00:30]} 44. g3 {[%emt 0:00:30] Repels Nf4} Rd1 {[%emt 0:00:30]} 45. Nd4 {[%emt 0:00:30]} Nxd4 {[%emt 0:00:30]} 46. Rxd4 {[%emt 0:00:30] KR-KR} Rc1+ {[%emt 0:00:30]} 47. Kb4 {[%emt 0:00:30]} Ke6 {[%emt 0:00:30] Prevents Rd7.} 48. Kb5 {[%emt 0:00:30] Strongly threatening Kb6.} Rc6 {[%emt 0:00:30] [#]} (48... f5 $11 {remains equal.}) 49. Rd8 {[%emt 0:00:30] White is more active.} ({White should play} 49. hxg5 $1 $16 hxg5 50. Rd8) 49... f5 {[%emt 0:00:30]} 50. Rh8 {[%emt 0:00:30]} Kd7 {[%emt 0:00:30]} 51. h5 {[%emt 0:00:30] aiming for Rh7+.} Rf6 $1 {[%emt 0:00:30]} 52. Rh7+ {[%emt 0:00:30]} Kc8 {[%emt 0:00:30]} 53. Rh8+ {[%emt 0:00:30]} Kc7 {[%emt 0:00:30]} 54. Rh7+ {[%emt 0:00:30]} (54. b4 $15) 54... Kc8 {[%emt 0:00:30]} (54... Kb8 $17 {And now ...f4 would win.} 55. Rg7 f4 56. gxf4 gxf4) 55. Rh8+ {[%emt 0:00:30] Weighted Error Value: White=0.10 (very precise) /Black=0.09 (flawless) .  Mistake:       	White=2     	Black=2      Inaccurate:     	White=4     	Black=2      OK:         	White=17    	Black=18     Best:        	White=1     	Black=2      Strong:       	---       	Black=1} 1/2-1/2

[Event "7th Sharjah Masters 2024"]
[Site "Sharjah"]
[Date "2024.05.20"]
[Round "7.10"]
[White "Fedoseev, Vladimir"]
[Black "Zemlyanskii, Ivan"]
[Result "0-1"]
[ECO "D02"]
[WhiteElo "2702"]
[BlackElo "2516"]
[Annotator "RC"]
[PlyCount "108"]
[EventDate "2024.05.13"]
[EventType "swiss"]
[EventCountry "UAE"]
[SourceTitle "playchess.com"]
[Source "ChessBase"]
[SourceQuality "1"]
[TimeControl "5400+30"]

1. d4 {[%emt 0:00:09]} Nf6 {[%emt 0:00:13]} 2. Nf3 {[%emt 0:00:17]} g6 {[%emt 0:00:31]} 3. g3 {[%emt 0:02:34]} Bg7 {[%emt 0:00:18]} 4. Bg2 {[%emt 0:00:01]} d5 {[%emt 0:00:25]} 5. O-O {[%emt 0:00:27]} O-O {[%emt 0:00:05]} 6. a4 {[%emt 0:01:02]} c5 {[%emt 0:02:34]} 7. dxc5 {[%emt 0:00:54]} Na6 {[%emt 0:01:21]} 8. Nc3 {[%emt 0:00:01]} Nxc5 {[%emt 0:00:11]} 9. Be3 {[%emt 0:00:09]} b6 {[%emt 0:04:39]} 10. a5 {[%emt 0:01:40]} Bb7 {[%emt 0:01:06]} 11. Ra3 {[%emt 0:12:11]} Qc8 {[%emt 0:14:29]} 12. Qa1 {[%emt 0:04:04]} Nfe4 {[%emt 0:23:28]} 13. Nxe4 {[%emt 0:12:55]} Nxe4 {[%emt 0:01:00]} 14. c3 {[%emt 0:04:14]} Qc7 {[%emt 0:13:57]} 15. a6 {[%emt 0:09:18]} Bc6 {[%emt 0:00:36]} 16. Nd4 {[%emt 0:00:07]} Bd7 {[%emt 0:08:03]} 17. Qa2 {[%emt 0:02:43]} Bxd4 {[%emt 0:13:06]} 18. Bxd4 {[%emt 0:10:08]} Be6 {[%emt 0:00:50]} 19. c4 {[%emt 0:03:49]} Rfd8 {[%emt 0:01:39]} 20. b3 {[%emt 0:04:24]} Rac8 {[%emt 0:01:18]} 21. e3 {[%emt 0:03:10]} Nf6 {[%emt 0:01:43]} 22. Qb2 {[%emt 0:02:19]} dxc4 {[%emt 0:01:06]} 23. bxc4 {[%emt 0:00:48]} Qd7 {[%emt 0:05:08]} 24. Bb7 {[%emt 0:09:32]} Rxc4 {[%emt 0:01:34]} 25. Raa1 {[%emt 0:00:25]} Bh3 {[%emt 0:01:00]} 26. Rfd1 {[%emt 0:03:04]} e5 {[%emt 0:02:06]} 27. Qb3 {[%emt 0:03:24]} Qe6 {[%emt 0:00:04]} 28. Bb2 {[%emt 0:00:27]} Rxd1+ {[%emt 0:00:20]} 29. Qxd1 {[%emt 0:00:01]} h5 {[%emt 0:01:33]} 30. Qd3 {[%emt 0:01:55]} Rb4 {[%emt 0:00:35]} 31. Bc3 {[%emt 0:01:53]} Rb3 {[%emt 0:00:10]} 32. Rc1 {[%emt 0:00:10]} Kh7 {[%emt 0:00:35]} 33. Qd1 {[%emt 0:02:38]} Rb5 {[%emt 0:00:28]} 34. Ba1 {[%emt 0:01:12]} Rc5 {[%emt 0:00:16]} 35. Rxc5 {[%emt 0:01:27]} bxc5 {[%emt 0:00:01]} 36. Qc1 {[%emt 0:00:16]} Qd6 {[%emt 0:00:35]} 37. f3 {[%emt 0:00:27]} Be6 {[%emt 0:01:25]} 38. e4 {[%emt 0:00:13]} c4 {[%emt 0:00:26]} 39. Kf2 {[%emt 0:00:29]} Nd7 {[%emt 0:00:23]} 40. Kg2 {[%emt 0:01:38]} Nc5 {[%emt 0:00:25]} 41. Bc3 {[%emt 0:01:29]} Nd3 {[%emt 0:00:31]} 42. Qd2 {[%emt 0:00:59]} h4 {[%emt 0:00:33]} 43. gxh4 {[%emt 0:00:17]} Qc5 {[%emt 0:00:23]} 44. h3 {[%emt 0:00:36]} Bxh3+ {[%emt 0:00:49]} 45. Kh2 {[%emt 0:00:01]} Be6 {[%emt 0:00:18]} 46. Qe2 {[%emt 0:00:44]} Qe7 {[%emt 0:00:34]} 47. Kg3 {[%emt 0:00:11]} Qa3 {[%emt 0:00:35]} 48. Qd2 {[%emt 0:00:26]} Qc5 {[%emt 0:00:21]} 49. Kh2 {[%emt 0:00:15]} Nf4 {[%emt 0:00:30]} 50. Qe1 {[%emt 0:02:09]} f6 {[%emt 0:00:38]} 51. Bd2 {[%emt 0:00:33]} Qa3 {[%emt 0:00:29]} 52. Kg3 {[%emt 0:00:44]} c3 {[%emt 0:00:31]} 53. Be3 {[%emt 0:00:47]} Qb2 {[%emt 0:00:18]} 54. Qf2 {[%emt 0:00:50]} c2 {[%emt 0:00:09]} 0-1